Cogmind - Beta 11.1 @@@ ROGUE MODE // 2022.08.17 @ 02:52:10 Player: Telecrab Result: Destroyed by G-47 Trooper with Particle Gun Performance ------------- Evolutions (0) 0 Regions Visited (2) 400 Robots Destroyed (21) 105 Value Destroyed (587) 587 Prototype IDs (3) 60 Alien Tech Used (0) 0 Bonus (0) 0 TOTAL SCORE: 1152 Bonus ------- None Cogmind --------- Core Integrity 0/250 Matter 195/300 Energy 250/250 System Corruption 2% Temperature Cool (9) Movement Core (350) Ox6 Location -10/Mines Parts ------- > --- POWER (1) -------- Ion Engine > --- PROPULSION (2) --- (None) > --- UTILITY (2) ------ Medium Storage Unit Structural Scanner > --- WEAPON (2) ------- Beam Cannon Assault Rifle > --- INVENTORY (10) --- Ion Engine Heat Sink Large Battery (200) Visual Processing Unit Targeting Computer Power Shielding Propulsion Shielding EM Pulse Gun Peak State ------------ > --- POWER ------------ Ion Engine > --- PROPULSION ------- Improved Flight Unit Improved Flight Unit > --- UTILITY ---------- Small Storage Unit > --- WEAPON ----------- Medium Laser Light Assault Rifle > --- INVENTORY -------- Ion Engine Light Ion Engine Light Nuclear Core Light Treads Wheel Compact Wheel Assault Rifle [Rating: 10] Favorites ----------- Power Ion Engine Engine Ion Engine Propulsion Light Treads Treads Light Treads Wheel Wheel Flight Unit Improved Flight Unit Utility Small Storage Unit Device Structural Scanner Storage Small Storage Unit Processor Signal Interpreter Protection Propulsion Shielding Weapon Heavy EM Pulse Gun Energy Gun Heavy EM Pulse Gun Energy Cannon Beam Cannon Ballistic Gun Light Assault Rifle Build | -11 -10 -10 ------- Run | Scr Mat Min Slots Evolved . | . . . Power . | . . . Propulsion . | . . . Utility . | . . . Weapon . | . . . Parts Attached 49 | 12 24 13 Power 7 | 3 2 2 Engine 7 | 3 2 2 Core . | . . . Reactor . | . . . Propulsion 15 | 4 9 2 Treads 5 | 2 2 1 Leg . | . . . Wheel 6 | 2 3 1 Hover . | . . . Flight 4 | . 4 . Utility 16 | 2 9 5 Device 9 | . 5 4 Storage 5 | 2 3 . Processor 1 | . 1 . Hackware . | . . . Protection 1 | . . 1 Artifact . | . . . Weapon 11 | 3 4 4 Energy Gun 6 | 1 3 2 Energy Cannon 1 | . . 1 Ballistic Gun 4 | 2 1 1 Ballistic Cannon . | . . . Launcher . | . . . Special Weapon . | . . . Impact Weapon . | . . . Slashing Weapon . | . . . Piercing Weapon . | . . . Special Melee Weapon . | . . . Unidentified Prototypes 1 | . 1 . Corrupted Parts 1 | . 1 . System Corruption 2 | . 2 . Parts Lost 5 | . . 5 Power 1 | . . 1 Propulsion 2 | . . 2 Utility 1 | . . 1 Weapon 1 | . . 1 Highest Loss Streak 3 | . . 3 To Critical Strikes . | . . . Average Slot Usage (%) 89 | . 91 85 Engine 13 | . 13 13 Treads 7 | . 6 9 Wheel 15 | . 18 6 Device 8 | . 6 13 Storage 14 | . 14 14 Processor 1 | . 2 . Energy Gun 21 | . 25 13 Energy Cannon 3 | . . 11 Ballistic Gun 2 | . 2 2 Naked Turns . | . . . Heaviest Build 52 | 13 52 22 Greatest Support 40 | 40 40 26 Greatest Overweight (x) 5 | 1 4 5 Average Overweight (x) . | . . . Largest Inventory Capacity 20 | 8 20 10 Average Capacity 9 | 7 11 10 Most Carried 10 | 4 10 10 Average Carried 6 | 3 7 9 Final Capacity 10 | 8 10 10 Final Carried 10 | 4 10 8 Class Distribution -------------------- 100% | Mutant Dominant Class ---------------- Mutant | -10/Materials Mutant | -10/Mines Resources | -11 -10 -10 ----------- Run | Scr Mat Min Matter Collected 719 | 187 397 135 Remotely . | . . . Salvage Created 935 | . 693 242 Parts 41 | . 27 14 Haulers Intercepted 1 | . 1 . Recyclers Shooed 3 | . 3 . Parts Field Recycled . | . . . Retrieved Matter . | . . . Parts Self-Destructed . | . . . Prevented . | . . . Kills | -11 -10 -10 ------- Run | Scr Mat Min Combat Hostiles Destroyed 12 | . 8 4 Guns 9 | . 7 2 Cannons 1 | . . 1 AOE 1 | . 1 . Classes Destroyed 7 | . 5 2 Worker 1 | . . 1 Hauler 1 | . 1 . Recycler 3 | . 3 . Operator 1 | . 1 . Watcher 3 | . 3 . Grunt 10 | . 8 2 Sentry 2 | . . 2 Best Kill Streak 4 | . 4 2 Combat Bots Only 4 | . 4 2 Max Kills in Single Turn 1 | . 1 1 Gunslinging . | . . . Exploded 1 | . 1 . Melee . | . . . Uniques/NPCs Destroyed . | . . . Combat | -11 -10 -10 -------- Run | Scr Mat Min Damage Taken 939 | . 340 599 Core 253 | . 33 220 Absorbed by Shields . | . . . Core Remaining (%) 100 | 100 . . Volleys Fired 100 | . 58 42 Largest 2 | . 2 2 Hottest 100 | . 90 100 Shots Fired 171 | . 117 54 Gun 159 | . 117 42 Cannon 12 | . . 12 Launcher . | . . . Special . | . . . Kinetic 35 | . 24 11 Thermal 36 | . 24 12 Explosive . | . . . Electromagnetic 100 | . 69 31 Robot Hit Streak 11 | . 7 11 Robot Miss Streak 6 | . 6 3 Penetration Max . | . . . Secondary Targets . | . . . Shots Hit Robots 93 | . 59 34 Core Hits 35 | . 25 10 Critical Kills . | . . . Critical Parts Destroyed . | . . . Critical Strikes 5 | . 4 1 Burn 2 | . 2 . Corrupt 3 | . 2 1 Melee Attacks . | . . . Impact . | . . . Slashing . | . . . Piercing . | . . . Sneak Attacks . | . . . Combat Hostiles . | . . . Follow-up Attacks . | . . . Damage Inflicted 1492 | . 970 522 Guns 1226 | . 848 378 Cannons 107 | . . 107 Explosions 159 | . 122 37 Melee . | . . . Ramming . | . . . Kinetic 186 | . 111 75 Thermal 466 | . 322 144 Explosive . | . . . Electromagnetic 840 | . 537 303 Impact . | . . . Slashing . | . . . Piercing . | . . . Highest Corruption 2 | . 2 2 Average Corruption 2 | . 2 2 Corruption Purged . | . . . Corruption Blocked . | . . . Effects 24 | . 16 8 Message Errors 10 | . 6 4 Matter Fused 6 | . 4 2 Heat Flow Errors 4 | . 3 1 Energy Discharges 2 | . 1 1 Data Loss (minor) 1 | . 1 . Misfires 1 | . 1 . Overload Shots . | . . . Overflow Damage 15 | . 11 4 Projectiles 4 | . . 4 Explosions 11 | . 11 . Melee . | . . . Knockbacks . | . . . Impact . | . . . Kinetic . | . . . Secondary . | . . . Self-Inflicted Damage 8 | . 8 . Shots 1 | . 1 . Rammed . | . . . Targets Rammed . | . . . Kicked . | . . . Crushed . | . . . Highest Temperature 562 | . 299 562 Average Temperature 115 | . 65 240 Received Heat Transfer 456 | . 192 264 Effects 17 | . . 17 Shutdowns 2 | . . 2 Energy Bleed 2 | . . 2 Interference 3 | . . 3 Matter Decay 1 | . . 1 Short Circuit 2 | . . 2 Damage (minor) 1 | . . 1 Damage (major) 6 | . . 6 Siege Activations . | . . . Robots Corrupted 2 | . 1 1 Combat Hostiles 1 | . . 1 Parts Fried 7 | . 5 2 Impact Corruptions . | . . . Robots Melted . | . . . Combat Hostiles . | . . . Parts Melted 3 | . 3 . Heat Transferred 1162 | . 890 272 Parts Sabotaged . | . . . Parts Stolen . | . . . Parts Stripped . | . . . Power Chain Reactions 3 | . 3 . Missiles Intercepted . | . . . Alert | -11 -10 -10 ------- Run | Scr Mat Min Peak Influence 130 | . 130 77 Initial 24 | . . 24 Average 37 | . 60 55 Maximum Alert Level . | . . . Low Security (%) 100 | 100 100 100 Level 1 . | . . . Level 2 . | . . . Level 3 . | . . . Level 4 . | . . . Level 5 . | . . . High Security . | . . . Max Security . | . . . Squads Dispatched 1 | . 1 . Investigation . | . . . Extermination . | . . . Reinforcement 1 | . 1 . Assault . | . . . Garrison . | . . . Intercept . | . . . Searches Triggered . | . . . Construction Impeded . | . . . Haulers Reinforced . | . . . Active Scanning Responses . | . . . Cargo Convoy Interrupts . | . . . Stealth | -11 -10 -10 --------- Run | Scr Mat Min Distress Signals . | . . . Communications Jammed . | . . . Distress Signals . | . . . Times Spotted 19 | . 13 6 Peak Tracking Total 2 | . 2 2 Tactical Retreats . | . . . Traps | -11 -10 -10 ------- Run | Scr Mat Min Traps Triggered . | . . . Indirectly . | . . . Trap Hack Attempts . | . . . Triggered . | . . . Disarmed . | . . . Reprogrammed . | . . . Reused . | . . . Traps Extracted . | . . . Installed . | . . . Triggered . | . . . Machines | -11 -10 -10 ---------- Run | Scr Mat Min Machines Disabled 2 | . 1 1 Max in Single Turn 1 | . 1 1 Machines Sabotaged . | . . . Garrisons Compromised . | . . . Overloaded Fab Kills . | . . . Hacking | -11 -10 -10 --------- Run | Scr Mat Min Machines Accessed 4 | . 4 . Terminals 2 | . 2 . Fabricators . | . . . Repair Stations 1 | . 1 . Recycling Units 1 | . 1 . Scanalyzers . | . . . Garrison Access . | . . . Total Hacks 13 | . 13 . Successful 12 | . 12 . Failed 1 | . 1 . Catastrophic . | . . . Database Lockouts . | . . . Manual 2 | . 2 . Terminals 5 | . 5 . Fabricators . | . . . Repair Stations 3 | . 3 . Recycling Units 5 | . 5 . Scanalyzers . | . . . Garrison Access . | . . . Terminal Hacks 5 | . 5 . Record 1 | . 1 . Prototype ID Bank 1 | . 1 . Alert Level 1 | . 1 . Reinforcement Status 1 | . 1 . Zone Layout 1 | . 1 . Fabricator Hacks . | . . . Repair Station Hacks 2 | . 2 . Scan Component 2 | . 2 . Recycling Unit Hacks 5 | . 5 . Recycle Component 1 | . 1 . Process 1 | . 1 . Report Inventory 2 | . 2 . Retrieve Matter 1 | . 1 . Scanalyzer . | . . . Garrison Access Hacks . | . . . Unauthorized Hacks . | . . . Terminals . | . . . Fabricators . | . . . Repair Stations . | . . . Recycling Units . | . . . Scanalyzers . | . . . Garrison Access . | . . . Data Cores Recovered . | . . . Used . | . . . Hacking Detections 3 | . 3 . Full Trace Events . | . . . Feedback Events . | . . . Feedback Blocked . | . . . Robot Schematics Acquired . | . . . Robots Built . | . . . Authchips . | . . . Time . | . . . Total Robot Build Rating . | . . . Part Schematics Acquired . | . . . Parts Built . | . . . Authchips . | . . . Time . | . . . Total Part Build Rating . | . . . Parts Repaired . | . . . Time . | . . . Parts Recycled 1 | . 1 . Recycled Matter 252 | . 252 . Retrieved Matter 277 | . 277 . Retrieved Components . | . . . Parts Scanalyzed . | . . . Part Schematics Acquired . | . . . Parts Damaged . | . . . Bothacking | -11 -10 -10 ------------ Run | Scr Mat Min Used RIF Installer . | . . . Robots Hacked . | . . . Non-combat . | . . . Combat . | . . . Robot Hacks Applied . | . . . Relay Couplers Released . | . . . Fabnet Peak Effective % . | . . . Robots Rewired . | . . . Allies Hacked . | . . . Hacks Repelled . | . . . Allies | -11 -10 -10 -------- Run | Scr Mat Min Total Allies . | . . . Largest Group . | . . . Highest-Rated Group . | . . . Highest-Rated Ally . | . . . Total Orders . | . . . Ally Attacks . | . . . Total Damage . | . . . Kills . | . . . Allies Corrupted . | . . . Allies Melted . | . . . Intel | -11 -10 -10 ------- Run | Scr Mat Min Robot Analysis Total . | . . . Derelict Logs Recovered . | . . . Drone Launches . | . . . Drone Recoveries . | . . . Exploration | -11 -10 -10 ------------- Run | Scr Mat Min Turns Passed 3034 | 1120 1327 587 Spaces Moved 1738 | 498 965 275 Core 13 | 7 . 6 Treads 813 | 479 201 133 Legs . | . . . Wheels 912 | 12 764 136 Hover . | . . . Flight . | . . . Fastest Speed 50 | 50 90 90 Average Speed 131 | 156 107 169 Slowest Speed 300 | 160 160 300 Overloaded Moves . | . . . Propulsion Burnouts . | . . . Robots Hopped . | . . . Cave-ins Triggered . | . . . Exploration Rate (%) 65 | 47 98 52 Regions Visited 2 Branch Regions 1 Pre-discovered Areas . | . . . Known Exits Taken . | . . . Unknown Exits Taken 2 | 1 1 . Scrap Searched 1 | . . 1 Spaces Dug . | . . . Terrain Destroyed 20 | . 11 9 Melee . | . . . Projectile . | . . . AOE 20 | . 11 9 Terrain Rammed . | . . . Walls Destroyed . | . . . Machines Disabled . | . . . Actions | -11 -10 -10 --------- Run | Scr Mat Min Total 2319 | 835 1143 341 Wait 372 | 315 54 3 Move 1736 | 497 964 275 Hop . | . . . Pick Up 37 | 10 25 2 Fast Attach 5 | . . 5 Attach 20 | 7 11 2 Detach 6 | 1 5 . Swap 24 | 5 13 6 Drop 19 | . 13 6 Fire 100 | . 58 42 Melee . | . . . Ram . | . . . Kick . | . . . Crush . | . . . Escape Stasis . | . . . Rewire . | . . . Trap . | . . . Miscellaneous . | . . . Route ------- -11/Scrapyard -10/Materials (discovered 4 exits: *Mat x3 / [*Min]) -10/Mines (discovered 1 exit: *Mat) History --------- Turn | Location | Event 2 | -11/Scrapyard | Met Revision 17 22 | -11/Scrapyard | Discovered new exit (range 15) 1121 | -11/Scrapyard | Entered Materials 1122 | -10/Materials | Build established: Mutant 1443 | -10/Materials | Discovered new exit (range 5) 1625 | -10/Materials | Discovered new exit (range 10) 1650 | -10/Materials | Identified exit to Materials 1728 | -10/Materials | Discovered exit to Materials (range 15) 1948 | -10/Materials | Discovered new exit (range 16) 2448 | -10/Materials | Entered Mines 2533 | -10/Mines | Core integrity fell below 50% 2898 | -10/Mines | Core integrity fell below 20% 2966 | -10/Mines | Lost 3 parts (1p1n1u) 3010 | -10/Mines | Discovered exit to Materials (range 9) 3020 | -10/Mines | Assembled infested the area 3035 | -10/Mines | Destroyed by G-47 Trooper with Particle Gun Last Messages --------------- Acquired 17 matter. K-01 Serf collects debris. U-05 Engineer lays Concrete. K-01 Serf collects debris. U-05 Engineer lays Concrete. R-06 Scavenger collects Wheel. K-01 Serf collects debris. U-05 Engineer lays Concrete. U-05 Engineer builds a Wall. U-05 Engineer lays Concrete. K-01 Serf collects debris. R-06 Scavenger collects Lgt. Ion Engine. U-05 Engineer lays Concrete. R-06 Scavenger collects Welding Torch. U-05 Engineer lays Concrete. K-01 Serf cleans the Seismic Survey Station. EXIT=FOUND: MATERIALS K-01 Serf cleans the Seismic Survey Station. ALERT: Infestation in the mines, dispatching Demolisher response squad. Wheel destroyed. Map ----- +----------------------------------------------------+ | ?????## ????????"" ???????????###### #??????? | | ?????## ???????"" ????????????????# #??????? | | ?????###### ????????? ????????????????# #??????? | | ?????###### ?????????# ????????????????# #??????? | | ??????????????????????#?????????????????# #?????## | | ????????????????????????????????????????# ######## | | ????????????????????????????????????????# ######## | | ????????????????????????????????????????# ### | | ????????????????????????????????????????#### ### | | ????????????????????????????????????????#### #### | | ????????????????????????????????????????#### %#### | | ????????????????????????????????????????## # #### | | ????????????????????????????????????????### ## | | ???????????????????????????????????????### = = # | | ???????????????????????????????????????### | | ????????????????????????"""????????????### [ | | ????????????????????????"""????????????### | | ????????????????????????"""????????????## | | ???????????????????????? ????????????## | | ???????????????????????? ????????????### #### | | ??????????????????????? #???????????#### ##### | | ???????????????????????## ##????????## #### ##### | | ???????????????????????## ##????????## #### ##??? | | ???????????????????????## ##????????## ##??? | | ?????????????#######???## ##???????######## ##??? | | ?????????????#######???##@################# ##??? | | ????????????? ? ## ########### ### ##??? | | ??????????????? """ ##g#### ##??? | | ??????????????? < """ ##### ##??? | | ??????????????? """ ############## #####??? | | ????????????? ##########?#### #####??? | | ?????????????#########?????????????#### ###?????? | | ?????????????#########??????????????########?????? | | ?????????????????????????????????????######??????? | | ?????????????????????????????????????????????????? | | ?????????????????????????????????????????????????? | | ?????????????????????????????????????????????????? | | ?????????????????????????????????????????????????? | | ?????????????????????????????????????????????????? | | ?????????????????????????????????????????????????? | | | | | | | | | | | | | | | | | | | | | +----------------------------------------------------+ Best States ------------- Heat Dissipation 25 Energy Generation 10 Energy Capacity 250 Matter Stores 300 Matter Capacity 300 Sight Range 16 Robot Scan Range 14 Terrain Scan Density 10 Propulsion Shielding 33 Evasion (%) 42 Recoil Reduction 2 Item Schematics ----------------- None Robot Schematics ------------------ None Fabricated ------------ Nothing Alien Tech Used ----------------- None Achievements -------------- None Challenges ------------ None Game ------ Seed ContainmentDynamicGravjet Manual? 0 Play Time 00:52:12 Cumulative 18.5 hours Start 2022.08.17 @ 01:49:21 End 2022.08.17 @ 02:52:10 Sessions 1 Manual Loads 0 Difficulty Rogue Special Mode None Game No. 9 Rogue 9 Adventurer 0 Explorer 0 Win Type - Total 0 Types 0/0/0/0/0/0/0/0/0 Lore% 17 Gallery% 18 Achievement% 14 Wizard Run 0 Options --------- ASCII 1 Keyboard 0 Movement Mouse Keybinds 0 Fullscreen 2 Font 24/Smallcaps Map View 76x50 Tactical HUD 0 Map Filters NONE Filters NONE Steam 1 RUN: 2ca84fb0-8dfd-45e8-b9f8-2ad5b589ae53